fUSD/lending_fUSD_20250407
["ID","MTS","AMOUNT","RATE_DAILY","PERIOD"]
[357416445,1744053484953,-1047.48,0.00044383,30]
[357416446,1744053484993,-500.0,0.00044383,30]
[357416447,1744053485036,-500.0,0.00044383,30]
[357416448,1744053485078,-500.0,0.00044383,30]
[357416449,1744053485117,-690.85,0.00044383,30]
[357416450,1744053485157,-500.0,0.00044383,30]
[357416451,1744053485195,-500.0,0.00044383,30]
[357416452,1744053485232,-500.0,0.00044383,30]
[357416453,1744053485273,-500.0,0.00044383,30]
[357416454,1744053485318,-500.0,0.00044383,30]
[357416455,1744053485357,-500.0,0.00044383,30]
[357416456,1744053485397,-701.1,0.00044383,30]
[357416457,1744053485434,-553.48,0.00044383,30]
[357416458,1744053485472,-500.0,0.00044383,30]
[357416459,1744053485512,-500.0,0.00044383,30]
[357416460,1744053485553,-500.0,0.00044383,30]
[357416461,1744053485592,-500.0,0.00044383,30]
[357416462,1744053485631,-958.02,0.00044383,30]
[357416463,1744053485670,-500.0,0.00044383,30]
[357416464,1744053485709,-500.0,0.00044383,30]
[357416465,1744053485752,-500.0,0.00044383,30]
[357416466,1744053485796,-500.0,0.00044383,30]
[357416467,1744053485837,-785.81,0.00044383,30]
[357416468,1744053485877,-500.0,0.00044383,30]
[357416469,1744053485916,-500.0,0.00044383,30]
[357416470,1744053485955,-399.44685471,0.00044383,30]
[357416471,1744053485996,-500.0,0.00044383,30]
[357416472,1744053486041,-500.0,0.00044383,30]
[357416473,1744053486080,-500.0,0.00044383,30]
[357416474,1744053486119,-500.0,0.00044383,30]
[357416475,1744053486158,-500.0,0.00044383,30]
[357416476,1744053486197,-500.0,0.00044383,30]
[357416477,1744053486236,-500.0,0.00044383,30]
[357416478,1744053486276,-500.0,0.00044383,30]
[357416479,1744053486316,-500.0,0.00044383,30]
[357416480,1744053486355,-546.97,0.00044383,30]
[357416481,1744053486394,-984.22,0.00044383,30]
[357416482,1744053486433,-406.62411982,0.00044383,30]
[357416483,1744053486472,-500.0,0.00044383,30]
[357416484,1744053486512,-500.0,0.00044383,30]
[357416485,1744053486554,-500.0,0.00044383,30]
[357416486,1744053486594,-500.0,0.00044383,30]
[357416487,1744053486634,-500.0,0.00044383,30]
[357416488,1744053486676,-500.0,0.00044383,30]
[357416489,1744053486718,-806.93,0.00044383,30]
[357416490,1744053486763,-510.24,0.00044383,30]
[357416491,1744053486803,-500.0,0.00044383,30]
[357416492,1744053486843,-500.0,0.00044383,30]
[357416493,1744053486883,-500.0,0.00044383,30]
[357416494,1744053486924,-500.0,0.00044383,30]
[357416495,1744053486963,-554.24,0.00044383,30]
[357416496,1744053487002,-500.0,0.00044383,30]
[357416497,1744053487044,-688.4,0.00044383,30]
[357416498,1744053487084,-500.0,0.00044383,30]
[357416499,1744053487124,-500.0,0.00044383,30]
[357416500,1744053487164,-500.0,0.00044383,30]
[357416501,1744053487203,-766.43,0.00044383,30]
[357416502,1744053487241,-500.0,0.00044383,30]
[357416503,1744053487283,-500.0,0.00044383,30]
[357416504,1744053487321,-500.0,0.00044383,30]
[357416505,1744053487571,-500.0,0.00044383,30]
[357416506,1744053487614,-548.79,0.00044383,30]
[357416507,1744053487653,-500.0,0.00044383,30]
[357416508,1744053487693,-500.0,0.00044383,30]
[357416509,1744053487733,-500.0,0.00044383,30]
[357416510,1744053487772,-680.81,0.00044383,30]
[357416511,1744053487812,-500.0,0.00044383,30]
[357416512,1744053487851,-500.0,0.00044383,30]
[357416513,1744053487888,-500.0,0.00044383,30]
[357416514,1744053487926,-500.0,0.00044383,30]
[357416515,1744053487962,-621.21,0.00044383,30]
[357416516,1744053487997,-500.0,0.00044383,30]
[357416517,1744053488035,-500.0,0.00044383,30]
[357416518,1744053488071,-500.0,0.00044383,30]
[357416519,1744053488109,-559.42,0.00044383,30]
[357416520,1744053488147,-500.0,0.00044383,30]
[357416521,1744053488185,-500.0,0.00044383,30]
[357416522,1744053488222,-1240.17,0.00044383,30]
[357416523,1744053488260,-741.23,0.00044383,30]
[357416524,1744053488301,-578.45,0.00044383,30]
[357416525,1744053488338,-500.0,0.00044383,30]
[357416526,1744053488378,-500.0,0.00044383,30]
[357416527,1744053488416,-500.0,0.00044383,30]
[357416528,1744053488455,-1000.0,0.00044383,120]
[357416529,1744053488495,-500.0,0.00044383,30]
[357416530,1744053488537,-500.0,0.00044383,30]
[357416531,1744053488577,-500.0,0.00044383,30]
[357416532,1744053488617,-500.0,0.00044383,30]
[357416533,1744053488656,-500.0,0.00044383,30]
[357416534,1744053488696,-500.0,0.00044383,30]
[357416535,1744053488737,-270.70723672,0.00044383,30]
[357416536,1744053488775,-500.0,0.00044383,30]
[357416537,1744053488817,-500.0,0.00044383,30]
[357416538,1744053488856,-523.27,0.00044383,30]
[357416539,1744053488894,-500.0,0.00044383,30]
[357416540,1744053488932,-1689.0,0.00044383,30]
[357416541,1744053488967,-1392.47,0.00044383,30]
[357416542,1744053489003,-805.22,0.00044383,30]
[357416543,1744053489040,-500.0,0.00044383,30]
[357416544,1744053489080,-1012.21,0.00044383,30]
[357416545,1744053489118,-500.0,0.00044383,30]
[357416546,1744053489157,-500.0,0.00044383,30]
[357416547,1744053489197,-708.56,0.00044383,30]
[357416548,1744053489239,-500.0,0.00044383,30]
[357416549,1744053489284,-500.0,0.00044383,30]
[357416550,1744053489326,-521.5,0.00044383,30]
[357416551,1744053489367,-1014.86,0.00044383,30]
[357416552,1744053489410,-841.52,0.00044383,30]
[357416553,1744053489452,-500.0,0.00044383,30]
[357416554,1744053489494,-264.95452225,0.00044383,30]
[357416555,1744053489538,-500.0,0.00044383,30]
[357416556,1744053489581,-500.0,0.00044383,30]
[357416557,1744053489622,-1637.05,0.00044383,30]
[357416558,1744053489661,-500.0,0.00044383,30]
[357416559,1744053489701,-861.38,0.00044383,30]
[357416560,1744053489739,-500.0,0.00044383,30]
[357416561,1744053489778,-684.24,0.00044383,30]
[357416562,1744053489819,-500.0,0.00044383,30]
[357416563,1744053489859,-500.0,0.00044383,30]
[357416564,1744053489901,-500.15,0.00044383,30]
[357416565,1744053489942,-1203.64,0.00044383,30]
[357416566,1744053489984,-531.0,0.00044383,30]
[357416567,1744053490024,-500.0,0.00044383,30]
[357416568,1744053490067,-500.0,0.00044383,30]
[357416569,1744053490107,-958.03,0.00044383,30]
[357416570,1744053490145,-519.13,0.00044383,30]
[357416571,1744053490182,-910.86,0.00044383,30]
[357416572,1744053490220,-784.04,0.00044383,30]
[357416573,1744053490256,-500.0,0.00044383,30]
[357416574,1744053490298,-1012.24,0.00044383,30]
[357416575,1744053490335,-1188.58,0.00044383,30]
[357416576,1744053490373,-500.0,0.00044383,30]
[357416577,1744053490409,-500.0,0.00044383,30]
[357416578,1744053490449,-1525.04,0.00044383,30]
[357416579,1744053490489,-500.0,0.00044383,30]
[357416580,1744053490527,-531.96,0.00044383,30]
[357416581,1744053490566,-4416.07,0.00044383,30]
[357416582,1744053490606,-500.0,0.00044383,30]
[357416583,1744053490646,-500.0,0.00044383,30]
[357416584,1744053490687,-500.0,0.00044383,30]
[357416585,1744053490731,-645.85074483,0.00044383,30]
[357416586,1744053490773,-485.50955039,0.00044383,30]
[357416587,1744053490815,-929.73,0.00044383,30]
[357416588,1744053490855,-500.0,0.00044383,30]
[357416589,1744053490898,-500.0,0.00044383,30]
[357416590,1744053490943,-1176.39,0.00044383,30]
[357416591,1744053490987,-500.0,0.00044383,30]
[357416592,1744053491027,-500.0,0.00044383,30]
[357416593,1744053491068,-1364.78,0.00044383,30]
[357416594,1744053491109,-571.74,0.00044383,30]
[357416595,1744053491149,-614.5,0.00044383,30]
[357416596,1744053491187,-500.0,0.00044383,30]
[357416597,1744053491224,-679.47,0.00044383,30]
[357416598,1744053491261,-500.0,0.00044383,30]
[357416599,1744053491304,-1516.12,0.00044383,30]
[357416600,1744053491343,-500.0,0.00044383,30]
[357416601,1744053491382,-500.0,0.00044383,30]
[357416602,1744053491418,-500.0,0.00044383,30]
[357416603,1744053491457,-500.0,0.00044383,30]
[357416604,1744053491497,-513.53,0.00044383,30]
[357416605,1744053491537,-500.0,0.00044383,30]
[357416606,1744053491576,-992.39,0.00044383,30]
[357416607,1744053491613,-500.0,0.00044383,30]
[357416608,1744053491650,-573.35,0.00044383,30]
[357416609,1744053491901,-500.0,0.00044383,30]
[357416610,1744053491939,-666.83,0.00044383,30]
[357416611,1744053491978,-500.0,0.00044383,30]
[357416612,1744053492016,-843.91,0.00044383,30]
[357416613,1744053492053,-906.23,0.00044383,30]
[357416614,1744053492094,-500.0,0.00044383,30]
[357416615,1744053492132,-544.56,0.00044383,30]
[357416616,1744053492170,-500.0,0.00044383,30]
[357416617,1744053492208,-500.0,0.00044383,30]
[357416618,1744053492247,-553.1,0.00044383,30]
[357416619,1744053492289,-565.95,0.00044383,30]
[357416620,1744053492329,-500.0,0.00044383,30]
[357416621,1744053492368,-500.0,0.00044383,30]
[357416622,1744053492411,-500.0,0.00044383,30]
[357416623,1744053492454,-892.39,0.00044383,30]
[357416624,1744053492495,-196.58181478,0.00044383,30]
[357416625,1744053492533,-500.0,0.00044383,30]
[357416626,1744053492572,-500.0,0.00044383,30]
[357416627,1744053492613,-625.55,0.00044383,30]
[357416628,1744053492653,-500.0,0.00044383,30]
[357416629,1744053492692,-578.79,0.00044383,30]
[357416630,1744053492730,-500.0,0.00044383,30]
[357416631,1744053492770,-500.0,0.00044383,30]
[357416632,1744053492806,-534.39,0.00044383,30]
[357416633,1744053492844,-8911.23,0.00044383,30]
[357416634,1744053492882,-1027.54,0.00044383,30]
[357416635,1744053492918,-500.0,0.00044383,30]
[357416636,1744053492954,-500.0,0.00044383,30]
[357416637,1744053492988,-500.0,0.00044383,30]
[357416638,1744053493023,-500.0,0.00044383,30]
[357416639,1744053493060,-500.0,0.00044383,30]
[357416640,1744053493096,-987.6,0.00044383,30]
[357416641,1744053493131,-500.0,0.00044383,30]
[357416642,1744053493167,-672.69,0.00044383,30]
[357416643,1744053493203,-500.0,0.00044383,30]
[357416644,1744053493239,-500.0,0.00044383,30]
[357416645,1744053493276,-543.11,0.00044383,30]
[357416646,1744053493316,-500.0,0.00044383,30]
[357416647,1744053493354,-686.77,0.00044383,30]
[357416648,1744053493392,-1475.94,0.00044383,30]
[357416649,1744053493430,-500.0,0.00044383,30]
[357416650,1744053493469,-500.0,0.00044383,30]
[357416651,1744053493507,-937.9,0.00044383,30]
[357416652,1744053493548,-874.59,0.00044383,30]
[357416653,1744053493586,-500.0,0.00044383,30]
[357416654,1744053493624,-500.0,0.00044383,30]
[357416655,1744053493662,-500.0,0.00044383,30]
[357416656,1744053493701,-652.1,0.00044383,30]
[357416657,1744053493741,-500.0,0.00044383,30]
[357416658,1744053493784,-500.0,0.00044383,30]
[357416659,1744053493824,-500.0,0.00044383,30]
[357416660,1744053493865,-500.0,0.00044383,30]
[357416661,1744053493904,-500.0,0.00044383,30]
[357416662,1744053493942,-600.11,0.00044383,30]
[357416663,1744053493980,-500.0,0.00044383,30]
[357416664,1744053494017,-1149.2,0.00044383,30]
[357416665,1744053494054,-500.0,0.00044383,30]
[357416666,1744053494092,-850.55,0.00044383,30]
[357416667,1744053494130,-500.0,0.00044383,30]
[357416668,1744053494167,-500.0,0.00044383,30]
[357416669,1744053494201,-500.0,0.00044383,30]
[357416670,1744053494236,-500.0,0.00044383,30]
[357416671,1744053494274,-500.0,0.00044383,30]
[357416672,1744053494316,-722.9,0.00044383,30]
[357416673,1744053494352,-500.0,0.00044383,30]
[357416674,1744053494390,-659.98,0.00044383,30]
[357416675,1744053494426,-685.02,0.00044383,30]
[357416676,1744053494463,-500.0,0.00044383,30]
[357416677,1744053494498,-500.0,0.00044383,30]
[357416678,1744053494533,-725.49,0.00044383,30]
[357416679,1744053494572,-500.0,0.00044383,30]
[357416680,1744053494609,-591.43,0.00044383,30]
[357416681,1744053494646,-500.0,0.00044383,30]
[357416682,1744053494685,-500.0,0.00044383,30]
[357416683,1744053494723,-498.28152764,0.00044383,30]
[357416684,1744053494761,-500.0,0.00044383,30]
[357416685,1744053494801,-552.16,0.00044383,30]
[357416686,1744053494840,-501.79,0.00044383,30]
[357416687,1744053494878,-500.0,0.00044383,30]
[357416688,1744053494917,-500.0,0.00044383,30]
[357416689,1744053494953,-500.0,0.00044383,30]
[357416690,1744053494989,-500.0,0.00044383,30]
[357416691,1744053495027,-500.0,0.00044383,30]
[357416692,1744053495064,-500.0,0.00044383,30]
[357416693,1744053495101,-500.0,0.00044383,30]
[357416694,1744053495141,-1448.28,0.00044383,30]
[357416695,1744053495177,-612.54,0.00044383,30]
[357416696,1744053495216,-680.6,0.00044383,30]
[357416697,1744053495252,-500.0,0.00044383,30]
[357416698,1744053495293,-500.0,0.00044383,30]
[357416699,1744053495329,-500.0,0.00044383,30]
[357416700,1744053495366,-1628.95,0.00044383,30]
[357416701,1744053495403,-500.0,0.00044383,30]
[357416702,1744053495441,-677.12,0.00044383,30]
[357416703,1744053495484,-1183.35,0.00044383,30]
[357416704,1744053495526,-500.0,0.00044383,30]
[357416705,1744053495566,-500.0,0.00044383,30]
[357416706,1744053495605,-500.0,0.00044383,30]
[357416707,1744053495643,-500.0,0.00044383,30]
[357416708,1744053495682,-726.45,0.00044383,30]
[357416709,1744053495721,-500.0,0.00044383,30]
[357416710,1744053495760,-683.69,0.00044383,30]
[357416711,1744053495800,-679.73,0.00044383,30]
[357416712,1744053496024,-500.0,0.00044383,30]
[357416713,1744053496064,-500.0,0.00044383,30]
[357416714,1744053496105,-594.09,0.00044383,30]
[357416715,1744053496144,-500.0,0.00044383,30]
[357416716,1744053496180,-500.0,0.00044383,30]
[357416717,1744053496217,-1310.83,0.00044383,30]
[357416718,1744053496254,-500.0,0.00044383,30]
[357416719,1744053496294,-500.0,0.00044383,30]
[357416720,1744053496333,-500.0,0.00044383,30]
[357416721,1744053496371,-500.0,0.00044383,30]
[357416722,1744053496409,-543.51,0.00044383,30]
[357416723,1744053496446,-638.67,0.00044383,30]
[357416724,1744053496482,-500.0,0.00044383,30]
[357416725,1744053496518,-500.0,0.00044383,30]
[357416726,1744053496555,-524.63,0.00044383,30]
[357416727,1744053496593,-500.0,0.00044383,30]
[357416728,1744053496631,-625.46,0.00044383,30]
[357416729,1744053496668,-516.51,0.00044383,30]
[357416730,1744053496706,-666.41,0.00044383,30]
[357416731,1744053496743,-500.0,0.00044383,30]
[357416732,1744053496782,-642.44,0.00044383,30]
[357416733,1744053496824,-500.0,0.00044383,30]
[357416734,1744053496863,-500.0,0.00044383,30]
[357416735,1744053496901,-669.48,0.00044383,30]
[357416736,1744053496938,-500.0,0.00044383,30]
[357416737,1744053496975,-500.0,0.00044383,30]
[357416738,1744053497011,-629.78,0.00044383,30]
[357416739,1744053497049,-789.54,0.00044383,30]
[357416740,1744053497086,-500.0,0.00044383,30]
[357416741,1744053497122,-500.0,0.00044383,30]
[357416742,1744053497158,-636.35,0.00044383,30]
[357416743,1744053497195,-516.15,0.00044383,30]
[357416744,1744053497232,-547.34,0.00044383,30]
[357416745,1744053497270,-500.0,0.00044383,30]
[357416746,1744053497309,-500.0,0.00044383,30]
[357416747,1744053497347,-500.0,0.00044383,30]
[357416748,1744053497385,-500.0,0.00044383,30]
[357416749,1744053497421,-500.0,0.00044383,30]
[357416750,1744053497457,-2154.07,0.00044383,30]
[357416751,1744053497494,-896.26,0.00044383,30]
[357416752,1744053497532,-500.0,0.00044383,30]
[357416753,1744053497570,-500.0,0.00044383,30]
[357416754,1744053497609,-527.73,0.00044383,30]
[357416755,1744053497649,-500.0,0.00044383,30]
[357416756,1744053497687,-500.0,0.00044383,30]
[357416757,1744053497724,-500.0,0.00044383,30]
[357416758,1744053497761,-682.75,0.00044383,30]
[357416759,1744053497801,-787.04,0.00044383,30]
[357416760,1744053497838,-667.11,0.00044383,30]
[357416761,1744053497874,-500.0,0.00044383,30]
[357416762,1744053497909,-624.38,0.00044383,30]
[357416763,1744053497946,-500.0,0.00044383,30]
[357416764,1744053497981,-546.09,0.00044383,30]
[357416765,1744053498016,-500.0,0.00044383,30]
[357416766,1744053498054,-826.91,0.00044383,30]
[357416767,1744053498092,-521.3,0.00044383,30]
[357416768,1744053498133,-500.0,0.00044383,30]
[357416769,1744053498170,-500.0,0.00044383,30]
[357416770,1744053498206,-894.23,0.00044383,30]
[357416771,1744053498242,-623.66,0.00044383,30]
[357416772,1744053498282,-500.0,0.00044383,30]
[357416773,1744053498318,-500.0,0.00044383,30]
[357416774,1744053498356,-546.91,0.00044383,30]
[357416775,1744053498394,-500.0,0.00044383,30]
[357416776,1744053498431,-500.0,0.00044383,30]
[357416777,1744053498469,-500.0,0.00044383,30]
[357416778,1744053498508,-728.3,0.00044383,30]
[357416779,1744053498547,-864.01,0.00044383,30]
[357416780,1744053498585,-1925.04,0.00044383,30]
[357416781,1744053498623,-2883.41,0.00044383,30]
[357416782,1744053498663,-767.67,0.00044383,30]
[357416783,1744053498704,-1087.6,0.00044383,30]
[357416784,1744053498748,-2705.13,0.00044383,30]
[357416785,1744053498797,-705.69,0.00044383,30]
[357416786,1744053498848,-500.67,0.00044383,30]
[357416787,1744053498900,-500.0,0.00044383,30]
[357416788,1744053498950,-500.0,0.00044383,30]
[357416789,1744053498999,-500.0,0.00044383,30]
[357416790,1744053499046,-500.0,0.00044383,30]
[357416791,1744053499092,-936.91,0.00044383,30]
[357416792,1744053499136,-500.0,0.00044383,30]
[357416793,1744053499182,-500.0,0.00044569,120]
[357416794,1744053499226,-500.0,0.00044569,120]
[357416795,1744053499282,-500.0,0.00044569,120]
[357416796,1744053499333,-500.0,0.00044569,120]
[357416797,1744053499384,-500.0,0.00044569,120]
[357416798,1744053499439,-500.0,0.00044569,120]
[357416799,1744053499490,-500.0,0.00044569,120]
[357416800,1744053499547,-500.0,0.00044569,120]
[357416801,1744053499599,-595.0,0.00044569,120]
[357416802,1744053499650,-500.0,0.00044569,120]
[357416803,1744053499703,-500.0,0.00044569,120]
[357416804,1744053499754,-500.0,0.00044569,120]
[357416805,1744053499818,-500.0,0.00044569,120]
[357416806,1744053499870,-500.0,0.00044569,120]
[357416807,1744053499920,-500.0,0.00044569,120]
[357416808,1744053499970,-500.0,0.00044569,120]
[357416809,1744053500019,-500.0,0.00044569,120]
[357416810,1744053500078,-500.0,0.00044569,120]
[357416811,1744053500126,-500.0,0.00044569,120]
[357416812,1744053500172,-500.0,0.00044569,120]
[357416813,1744053500217,-500.0,0.00044569,120]
[357416814,1744053500264,-500.0,0.00044569,120]
[357416815,1744053500537,-500.0,0.00044569,120]
[357416816,1744053500582,-500.0,0.00044569,120]
[357416817,1744053500626,-500.0,0.00044569,120]
[357416818,1744053500674,-500.0,0.00044569,120]
[357416819,1744053500719,-500.0,0.00044569,120]
[357416820,1744053500763,-500.0,0.00044569,120]
[357416821,1744053500815,-500.0,0.00044569,120]
[357416822,1744053500858,-500.0,0.00044569,120]
[357416823,1744053500902,-500.0,0.00044569,120]
[357416824,1744053500945,-500.0,0.00044569,120]
[357416825,1744053500988,-500.0,0.00044569,120]
[357416826,1744053501038,-500.0,0.00044569,120]
[357416827,1744053501082,-500.0,0.00044569,120]
[357416828,1744053501125,-500.0,0.00044569,120]
[357416829,1744053501168,-500.0,0.00044569,120]
[357416830,1744053501210,-500.0,0.00044569,120]
[357416831,1744053501251,-500.0,0.00044569,120]
[357416832,1744053501290,-500.0,0.00044569,120]
[357416833,1744053501332,-500.0,0.00044569,120]
[357416834,1744053501373,-500.0,0.00044569,120]
[357416835,1744053501419,-500.0,0.00044569,120]
[357416836,1744053501468,-500.0,0.00044569,120]
[357416837,1744053501518,-500.0,0.00044569,120]
[357416838,1744053501570,-500.0,0.00044569,120]
[357416839,1744053501615,-500.0,0.00044569,120]
[357416840,1744053501661,-500.0,0.00044569,120]
[357416841,1744053501706,-500.0,0.00044569,120]
[357416842,1744053501749,-500.0,0.00044569,120]
[357416843,1744053501792,-500.0,0.00044569,120]
[357416844,1744053501834,-500.0,0.00044569,120]
[357416845,1744053501874,-500.0,0.00044569,120]
[357416846,1744053501914,-500.0,0.00044569,120]
[357416847,1744053501969,-500.0,0.00044569,120]
[357416848,1744053502013,-500.0,0.00044569,120]
[357416849,1744053502064,-500.0,0.00044569,120]
[357416850,1744053502108,-500.0,0.00044569,120]
[357416851,1744053502150,-500.0,0.00044569,120]
[357416852,1744053502191,-500.0,0.00044569,120]
[357416853,1744053502233,-500.0,0.00044569,120]
[357416854,1744053502280,-500.0,0.00044569,120]
[357416855,1744053502326,-500.0,0.00044569,120]
[357416856,1744053502372,-500.0,0.00044569,120]
[357416857,1744053502415,-500.0,0.00044569,120]
[357416858,1744053502459,-500.0,0.00044569,120]
[357416859,1744053502503,-500.0,0.00044569,120]
[357416860,1744053502547,-500.0,0.00044569,120]
[357416861,1744053502592,-500.0,0.00044569,120]
[357416862,1744053502639,-500.0,0.00044569,120]
[357416863,1744053502687,-500.0,0.00044569,120]
[357416864,1744053502734,-500.0,0.00044569,120]
[357416865,1744053502782,-500.0,0.00044569,120]
[357416866,1744053502829,-500.0,0.00044569,120]
[357416867,1744053502875,-500.0,0.00044569,120]
[357416868,1744053502920,-500.0,0.00044569,120]
[357416869,1744053502963,-500.0,0.00044569,120]
[357416870,1744053503009,-500.0,0.00044569,120]
[357416871,1744053503058,-500.0,0.00044569,120]
[357416872,1744053503103,-500.0,0.00044569,120]
[357416873,1744053503147,-500.0,0.00044569,120]
[357416874,1744053503191,-500.0,0.00044569,120]
[357416875,1744053503235,-500.0,0.00044569,120]
[357416876,1744053503288,-500.0,0.00044569,120]
[357416877,1744053503330,-500.0,0.00044569,120]
[357416878,1744053503372,-500.0,0.00044569,120]
[357416879,1744053503420,-500.0,0.00044569,120]
[357416880,1744053503462,-500.0,0.00044569,120]
[357416881,1744053503506,-500.0,0.00044656,30]
[357416882,1744053503552,-500.0,0.00044656,30]
[357416883,1744053503595,-500.0,0.00044657,30]
[357416884,1744053503635,-500.0,0.00044657,30]
[357416885,1744053503674,-500.0,0.00044657,30]
[357416886,1744053503713,-500.0,0.00044657,30]
[357416887,1744053503751,-500.0,0.00044657,30]
[357416888,1744053503792,-172.28007206,0.00044657,30]
[357416889,1744053503833,-500.0,0.00044657,30]
[357416890,1744053503873,-722.71,0.00044657,30]
[357416891,1744053503911,-500.0,0.00044657,30]
[357416892,1744053503948,-500.0,0.00044657,30]
[357416893,1744053503985,-500.0,0.00044657,30]
[357416894,1744053504021,-500.0,0.00044657,30]
[357416895,1744053504062,-500.0,0.00044657,30]
[357416896,1744053504101,-854.61,0.00044657,30]
[357416897,1744053504141,-500.0,0.00044657,30]
[357416898,1744053504182,-223.48769187,0.00044657,30]
[357416899,1744053504223,-500.0,0.00044657,30]
[357416900,1744053504263,-589.44458701,0.00044657,30]
[357416901,1744053504306,-635.5,0.00044657,30]
[357416902,1744053504343,-500.0,0.00044657,30]
[357416903,1744053504380,-500.0,0.00044657,30]
[357416904,1744053504423,-500.0,0.00044657,30]
[357416905,1744053504468,-500.0,0.00044657,30]
[357416906,1744053504511,-500.0,0.00044657,30]
[357416907,1744053504555,-500.0,0.00044657,30]
[357416908,1744053504595,-500.0,0.00044657,30]
[357416909,1744053504635,-601.13,0.00044657,30]
[357416910,1744053504676,-588.4,0.00044657,30]
[357416911,1744053504715,-610.77783937,0.00044657,30]
[357416912,1744053504755,-500.0,0.00044657,30]
[357416913,1744053504796,-500.0,0.00044657,30]
[357416914,1744053504837,-499.82994695,0.00044657,30]
[357416915,1744053504879,-500.0,0.00044657,30]
[357416916,1744053504922,-500.0,0.00044657,30]
[357416917,1744053504965,-1000.0,0.00044657,120]
[357416918,1744053505006,-500.0,0.00044657,30]
[357416919,1744053505298,-500.0,0.00044657,30]
[357416920,1744053505344,-500.0,0.00044657,30]
[357416921,1744053505388,-500.0,0.00044657,30]
[357416922,1744053505431,-500.0,0.00044657,30]
[357416923,1744053505472,-822.42,0.00044657,30]
[357416924,1744053505510,-500.0,0.00044657,30]
[357416925,1744053505551,-500.0,0.00044657,30]
[357416926,1744053505589,-500.0,0.00044657,30]
[357416927,1744053505629,-500.0,0.00044657,30]
[357416928,1744053505673,-500.0,0.00044657,30]
[357416929,1744053505716,-500.0,0.00044657,30]
[357416930,1744053505758,-500.0,0.00044657,30]
[357416931,1744053505797,-500.0,0.00044657,30]
[357416932,1744053505836,-500.0,0.00044657,30]
[357416933,1744053505874,-500.0,0.00044657,30]
[357416934,1744053505912,-500.0,0.00044657,30]
[357416935,1744053505949,-500.0,0.00044657,30]
[357416936,1744053505986,-500.0,0.00044657,30]
[357416937,1744053506022,-500.0,0.00044657,30]
[357416938,1744053506058,-500.0,0.00044657,30]
[357416939,1744053506094,-794.6,0.00044657,30]
[357416940,1744053506131,-500.0,0.00044657,30]
[357416941,1744053506168,-500.0,0.00044657,30]
[357416942,1744053506205,-500.0,0.00044657,30]
[357416943,1744053506244,-500.0,0.00044657,30]
[357416944,1744053506290,-500.0,0.00044657,30]